Workbook

Sheet PartABalance Sheet(PY)
A2: Company Name:
A3: Westgate Communications, LLC
B4: Balance | C4: Part 64 | D4: Adj. Balance | G4: Balance | H4: Part 64 | I4: Adj. Balance
A5: ASSETS | B5: End of Year | C5: Adj to NonReg | D5: End of Year | F5: LIABILITIES AND STOCKHOLDERS' EQUITY | G5: End of Year | H5: Adj to NonReg | I5: End of Year
B6: 2012 (A) | C6: 2012 (B) | D6: 2012 | G6: 2012 (A) | H6: 2012 (B) | I6: 2012
A7: CURRENT ASSETS | F7: CURRENT LIABILITIES
A8: 1. Cash and Equivalents | B8: 35725 | D8: =SUM(B8:C8) -> 35725 | F8: 25. Accounts Payable | G8: 604464 | I8: =SUM(G8:H8) -> 604464
A9: 2. Cash-RUS Construction Fund | B9: 0 | D9: =SUM(B9:C9) -> 0 | F9: 26. Notes Payable | G9: 83451 | I9: =SUM(G9:H9) -> 83451
A10: 3. Affiliates: | F10: 27. Advance Billings and Payments | G10: 0 | I10: 0
A11: a. Telecom, Accounts Receivable | B11: 32388 | D11: =SUM(B11:C11) -> 32388 | F11: 28. Customer Deposits | G11: 0 | H11: 0 | I11: 0
A12: b. Other Accounts Receivable | B12: 0 | D12: =SUM(B12:C12) -> 0 | F12: 29. Current Mat. L/T Debt | G12: 550059 | I12: 550059
A13: c. Notes Receivable | B13: 0 | D13: 0 | F13: 30. Current Mat. L/T Debt Rur. Dev. | G13: 0 | I13: 0
A14: 4. Non-Affiliates: | F14: 31. Current Mat. - Capital Leases | G14: 0 | I14: 0
A15: a. Telecom, Accounts Receivable | B15: 38181 | D15: =SUM(B15:C15) -> 38181 | F15: 32. Income Taxes Accrued | G15: 0 | I15: 0
A16: b. Other Accounts Receivable | B16: 0 | D16: =SUM(B16:C16) -> 0 | F16: 33. Other Taxes Accrued | G16: 9986 | I16: 9986
A17: c. Notes Receivable | B17: 0 | D17: 0 | F17: 34. Other Current Liabilities | G17: 362320 | I17: 362320
A18: 5. Interest and Dividends Receivable | B18: 0 | D18: 0 | F18: 35. Total Current Liabilities (25 thru 34) | G18: =SUM(G8:G17) -> 1610280 | H18: =H11 -> 0 | I18: =SUM(I8:I17) -> 1610280
A19: 6. Material-Regulated | B19: 0 | C19: 0 | D19: 0 | F19: LONG-TERM DEBT
A20: 7. Material-Nonregulated | B20: 0 | D20: 0 | F20: 36. Funded Debt-RUS Notes | G20: 832337 | I20: =SUM(G20:H20) -> 832337
A21: 8. Prepayments | B21: 0 | D21: 0 | F21: 37. Funded Debt-RTB Notes | G21: 0 | I21: =SUM(G21:H21) -> 0
A22: 9. Other Current Assets | B22: 88 | D22: 88 | F22: 38. Funded Debt-FFB Notes | G22: 0 | I22: 0
A23: 10. Total Current Assets (1 Thru 9) | B23: =B8+B9+B11+B12+B13+B15+B16+B17+B18+B19+B20+B21+B22 -> 106382 | C23: =C19 -> 0 | D23: =D8+D9+D11+D12+D13+D15+D16+D17+D18+D19+D20+D21+D22 -> 106382 | F23: 39. Funded Debt-Other | G23: 342653 | I23: 342653
F24: 40. Funded Debt-Rural Develop. Loan | G24: 0 | I24: 0
A25: NONCURRENT ASSETS | F25: 41. Premium (Discount) on L/T Debt | G25: 0 | I25: 0
A26: 11. Investment in Affiliated Companies | F26: 42. Reacquired Debt | G26: 0 | I26: 0
A27: a. Rural Development | B27: 0 | D27: =SUM(B27:C27) -> 0 | F27: 43. Obligations Under Capital Lease | G27: 0 | I27: 0
A28: b. Nonrural Development | B28: 0 | D28: =SUM(B28:C28) -> 0 | F28: 44. Adv. From Affiliated Companies | G28: 0 | I28: 0
A29: 12. Other Investments | F29: 45. Other Long-Term Debt | G29: 0 | I29: 0
A30: a. Rural Development | B30: 0 | D30: =SUM(B30:C30) -> 0 | F30: 46. Total Long-Term Debt (36 thru 45) | G30: =SUM(G20:G29) -> 1174990 | I30: =SUM(I20:I29) -> 1174990
A31: b. Nonrural Development | B31: 0 | D31: =SUM(B31:C31) -> 0 | F31: OTHER LIAB. & DEF. CREDITS
A32: 13. Nonregulated Investments (B1) | B32: 0 | C32: =-1*(C44+C19) -> 18708 | D32: 18708 | F32: 47. Other Long-Term Liabilities | G32: 0 | I32: =SUM(G32:H32) -> 0
A33: 14. Other Noncurrent Assets | B33: 5500 | D33: 5500 | F33: 48. Other Deferred Credits (C) | G33: 0 | I33: =SUM(G33:H33) -> 0
A34: 15. Deferred Charges | B34: 0 | D34: 0 | F34: 49. Other Jurisdictional Differences | G34: 0 | I34: 0
A35: 16. Jurisdictional Differences | B35: 0 | D35: 0 | F35: 50. Total Other Liab. & Def. Credits (47 thru 49) | G35: =SUM(G32:G34) -> 0 | H35: =SUM(H32:H34) -> 0 | I35: 0
A36: 17. Total noncurrent Assets (11 thru 16) | B36: =B27+B28+B30+B31+B32+B33+B34+B35 -> 5500 | C36: =C32 -> 18708 | D36: =D27+D28+D30+D31+D32+D33+D34+D35 -> 24208 | F36: EQUITY
F37: 51. Cap. Stock Outstanding & Subscribed | G37: 0 | I37: =SUM(G37:H37) -> 0
A38: PLANT, PROPERTY AND EQUIPMENT | F38: 52. Additional Paid-in-Capital | G38: 0 | I38: =SUM(G38:H38) -> 0
A39: 18. Telecom Plant-In-Service | B39: 2074627 | C39: -25712 | D39: =SUM(B39:C39) -> 2048915 | F39: 53. Treasury Stock | G39: 0 | I39: 0
A40: 19. Property Held for Future Use | B40: 0 | D40: =SUM(B40:C40) -> 0 | F40: 54. Membership and cap. Certificates | G40: 0 | I40: 0
A41: 20. Plant Under Construction | B41: 2153 | D41: 2153 | F41: 55. Other Capital | G41: 0 | I41: 0
A42: 21. Plant Adj.,Nonop Plant & Goodwill | B42: 0 | D42: 0 | F42: 56. Patronage Capital Credits | G42: 0 | I42: 0
A43: 22. Accumulated Depreciation (CR.) | B43: -1050347 | C43: 7004 | D43: -1043343 | F43: 57. Retained Earnings or Margins (B2) | G43: -1646955 | H43: =-1*H35 -> 0 | I43: -1646955
A44: 23. Net Plant (18 thru 21 less 22) | B44: =B39+B40+B41+B42+B43 -> 1026433 | C44: =C39+C40+C41+C42+C43 -> -18708 | D44: 1007725 | F44: 58. Total Equity (51 thru 57) | G44: =SUM(G37:G43) -> -1646955 | H44: =SUM(H37:H43) -> 0 | I44: -1646955
A46: TOTAL ASSETS (10+17+23) | B46: =B23+B36+B44 -> 1138315 | C46: =C23+C36+C44 -> 0 | D46: 1138315 | F46: 59. TOTAL LIABILITIES AND EQUITY (35+46+50+58) | G46: =G18+G30+G35+G44 -> 1138315 | H46: =H18+H30+H35+H44 -> 0 | I46: 1138315
A48: (A) - As reported on Form 481 | G48: =G46-B46 -> 0 | I48: =I46-D46 -> 0
A49: (B) - Part 64 adjustments to rate base
A50: from regulated to nonregulated.
A51: (B1) - Part 64 offset to nonreg investment
A52: (B2) - Part 64 offset to retained earnings
A53: (C) - Part 64 Adj. for line 48 is only for
A54: deferred taxes.

Sheet PartABalance Sheet(CY)
A2: Company Name:
A3: ='PartABalance Sheet(PY)'!A3 -> Westgate Communications, LLC
B4: Balance | C4: Part 64 | D4: Adj. Balance | G4: Balance | H4: Part 64 | I4: Adj. Balance
A5: ASSETS | B5: End of Year | C5: Adj to NonReg | D5: End of Year | F5: LIABILITIES AND STOCKHOLDERS' EQUITY | G5: End of Year | H5: Adj to NonReg | I5: End of Year
B6: 2013 (A) | C6: 2013 (B) | D6: 2013 | G6: 2013 (A) | H6: 2013 (B) | I6: 2013
A7: CURRENT ASSETS | F7: CURRENT LIABILITIES
A8: 1. Cash and Equivalents | B8: 1621.52 | D8: =SUM(B8:C8) -> 1621.52 | F8: 25. Accounts Payable | G8: 528033.98 | I8: =SUM(G8:H8) -> 528033.98
A9: 2. Cash-RUS Construction Fund | B9: 0 | D9: =SUM(B9:C9) -> 0 | F9: 26. Notes Payable | G9: 80375.5 | I9: =SUM(G9:H9) -> 80375.5
A10: 3. Affiliates: | F10: 27. Advance Billings and Payments | G10: 0 | I10: 0
A11: a. Telecom, Accounts Receivable | B11: 5379.28 | D11: =SUM(B11:C11) -> 5379.28 | F11: 28. Customer Deposits | G11: 0 | H11: 0 | I11: 0
A12: b. Other Accounts Receivable | B12: 0 | D12: =SUM(B12:C12) -> 0 | F12: 29. Current Mat. L/T Debt | G12: 583700 | I12: 583700
A13: c. Notes Receivable | B13: 0 | D13: 0 | F13: 30. Current Mat. L/T Debt Rur. Dev. | G13: 0 | I13: 0
A14: 4. Non-Affiliates: | F14: 31. Current Mat. - Capital Leases | G14: 0 | I14: 0
A15: a. Telecom, Accounts Receivable | B15: 33962.9 | D15: =SUM(B15:C15) -> 33962.9 | F15: 32. Income Taxes Accrued | G15: 0 | I15: 0
A16: b. Other Accounts Receivable | B16: 0 | D16: =SUM(B16:C16) -> 0 | F16: 33. Other Taxes Accrued | G16: 11921.23 | I16: 11921.23
A17: c. Notes Receivable | B17: 0 | D17: 0 | F17: 34. Other Current Liabilities | G17: 419681.84 | I17: 419681.84
A18: 5. Interest and Dividends Receivable | B18: 0 | D18: 0 | F18: 35. Total Current Liabilities (25 thru 34) | G18: =SUM(G8:G17) -> 1623712.55 | H18: =H11 -> 0 | I18: =SUM(I8:I17) -> 1623712.55
A19: 6. Material-Regulated | B19: 0 | C19: 0 | D19: 0 | F19: LONG-TERM DEBT
A20: 7. Material-Nonregulated | B20: 0 | D20: 0 | F20: 36. Funded Debt-RUS Notes | G20: 806932 | I20: =SUM(G20:H20) -> 806932
A21: 8. Prepayments | B21: 0 | D21: 0 | F21: 37. Funded Debt-RTB Notes | G21: 0 | I21: =SUM(G21:H21) -> 0
A22: 9. Other Current Assets | B22: 0 | D22: 0 | F22: 38. Funded Debt-FFB Notes | G22: 0 | I22: 0
A23: 10. Total Current Assets (1 Thru 9) | B23: =B8+B9+B11+B12+B13+B15+B16+B17+B18+B19+B20+B21+B22 -> 40963.7 | C23: =C19 -> 0 | D23: =D8+D9+D11+D12+D13+D15+D16+D17+D18+D19+D20+D21+D22 -> 40963.7 | F23: 39. Funded Debt-Other | G23: 333595 | I23: 333595
F24: 40. Funded Debt-Rural Develop. Loan | G24: 0 | I24: 0
A25: NONCURRENT ASSETS | F25: 41. Premium (Discount) on L/T Debt | G25: 0 | I25: 0
A26: 11. Investment in Affiliated Companies | F26: 42. Reacquired Debt | G26: 0 | I26: 0
A27: a. Rural Development | B27: 0 | D27: =SUM(B27:C27) -> 0 | F27: 43. Obligations Under Capital Lease | G27: 0 | I27: 0
A28: b. Nonrural Development | B28: 0 | D28: =SUM(B28:C28) -> 0 | F28: 44. Adv. From Affiliated Companies | G28: 0 | I28: 0
A29: 12. Other Investments | F29: 45. Other Long-Term Debt | G29: 0 | I29: 0
A30: a. Rural Development | B30: 0 | D30: =SUM(B30:C30) -> 0 | F30: 46. Total Long-Term Debt (36 thru 45) | G30: =SUM(G20:G29) -> 1140527 | I30: =SUM(I20:I29) -> 1140527
A31: b. Nonrural Development | B31: 0 | D31: =SUM(B31:C31) -> 0 | F31: OTHER LIAB. & DEF. CREDITS
A32: 13. Nonregulated Investments (B1) | B32: 2649.28 | C32: =-1*(C44+C19) -> 19735 | D32: 22384.28 | F32: 47. Other Long-Term Liabilities | G32: 0 | I32: =SUM(G32:H32) -> 0
A33: 14. Other Noncurrent Assets | B33: 4750 | D33: 4750 | F33: 48. Other Deferred Credits (C) | G33: 0 | H33: 0 | I33: =SUM(G33:H33) -> 0
A34: 15. Deferred Charges | B34: 0 | D34: 0 | F34: 49. Other Jurisdictional Differences | G34: 0 | I34: 0
A35: 16. Jurisdictional Differences | B35: 0 | D35: 0 | F35: 50. Total Other Liab. & Def. Credits (47 thru 49) | G35: =SUM(G32:G34) -> 0 | H35: =SUM(H32:H34) -> 0 | I35: 0
A36: 17. Total noncurrent Assets (11 thru 16) | B36: =B27+B28+B30+B31+B32+B33+B34+B35 -> 7399.28 | C36: =C32 -> 19735 | D36: =D27+D28+D30+D31+D32+D33+D34+D35 -> 27134.28 | F36: EQUITY
F37: 51. Cap. Stock Outstanding & Subscribed | G37: 0 | I37: =SUM(G37:H37) -> 0
A38: PLANT, PROPERTY AND EQUIPMENT | F38: 52. Additional Paid-in-Capital | G38: 0 | I38: =SUM(G38:H38) -> 0
A39: 18. Telecom Plant-In-Service | B39: 2199788.09 | C39: -27954 | D39: =SUM(B39:C39) -> 2171834.09 | F39: 53. Treasury Stock | G39: 0 | I39: 0
A40: 19. Property Held for Future Use | B40: 0 | D40: =SUM(B40:C40) -> 0 | F40: 54. Membership and cap. Certificates | G40: 0 | I40: 0
A41: 20. Plant Under Construction | B41: 2475.36 | D41: 2475.36 | F41: 55. Other Capital | G41: 0 | I41: 0
A42: 21. Plant Adj.,Nonop Plant & Goodwill | B42: 0 | D42: 0 | F42: 56. Patronage Capital Credits | G42: 0 | I42: 0
A43: 22. Accumulated Depreciation (CR.) | B43: -1224965.82 | C43: 8219 | D43: -1216746.82 | F43: 57. Retained Earnings or Margins (B2) | G43: -1738578.94 | H43: =-1*H35 -> 0 | I43: -1738578.94
A44: 23. Net Plant (18 thru 21 less 22) | B44: =B39+B40+B41+B42+B43 -> 977297.63 | C44: =C39+C40+C41+C42+C43 -> -19735 | D44: 957562.63 | F44: 58. Total Equity (51 thru 57) | G44: =SUM(G37:G43) -> -1738578.94 | H44: =SUM(H37:H43) -> 0 | I44: -1738578.94
A46: TOTAL ASSETS (10+17+23) | B46: =B23+B36+B44 -> 1025660.61 | C46: =C23+C36+C44 -> 0 | D46: 1025660.61 | F46: 59. TOTAL LIABILITIES AND EQUITY (35+46+50+58) | G46: =G18+G30+G35+G44 -> 1025660.61 | H46: =H18+H30+H35+H44 -> 0 | I46: 1025660.61
A48: (A) - As reported on Form 481 | G48: =G46-B46 -> 0 | I48: =I46-D46 -> 0
A49: (B) - Part 64 adjustments to rate base
A50: from regulated to nonregulated.
A51: (B1) - Part 64 offset to nonreg investment
A52: (B2) - Part 64 offset to retained earnings
A53: (C) - Part 64 Adj. for line 48 is only for
A54: deferred taxes.

Sheet PartABalance Sheet (Summary)
A2: Company Name:
A3: ='PartABalance Sheet(PY)'!A3 -> Westgate Communications, LLC
B4: Adjusted | C4: Adjusted | F4: Adjusted | G4: Adjusted
A5: ASSETS | B5: Prior Year | C5: Current Year | E5: LIABILITIES AND STOCKHOLDERS' EQUITY | F5: Prior Year | G5: Current Year
B6: Balance 2012 | C6: Balance 2013 | F6: Balance 2012 | G6: Balance 2013
A7: CURRENT ASSETS | E7: CURRENT LIABILITIES
A8: 1. Cash and Equivalents | B8: ='PartABalance Sheet(PY)'!D8 -> 35725 | C8: ='PartABalance Sheet(CY) '!D8 -> 1621.52 | E8: 25. Accounts Payable | F8: ='PartABalance Sheet(PY)'!I8 -> 604464 | G8: ='PartABalance Sheet(CY) '!I8 -> 528033.98
A9: 2. Cash-RUS Construction Fund | B9: ='PartABalance Sheet(PY)'!D9 -> 0 | C9: ='PartABalance Sheet(CY) '!D9 -> 0 | E9: 26. Notes Payable | F9: ='PartABalance Sheet(PY)'!I9 -> 83451 | G9: ='PartABalance Sheet(CY) '!I9 -> 80375.5
A10: 3. Affiliates: | E10: 27. Advance Billings and Payments | F10: ='PartABalance Sheet(PY)'!I10 -> 0 | G10: ='PartABalance Sheet(CY) '!I10 -> 0
A11: a. Telecom, Accounts Receivable | B11: ='PartABalance Sheet(PY)'!D11 -> 32388 | C11: ='PartABalance Sheet(CY) '!D11 -> 5379.28 | E11: 28. Customer Deposits | F11: ='PartABalance Sheet(PY)'!I11 -> 0 | G11: ='PartABalance Sheet(CY) '!I11 -> 0
A12: b. Other Accounts Receivable | B12: ='PartABalance Sheet(PY)'!D12 -> 0 | C12: ='PartABalance Sheet(CY) '!D12 -> 0 | E12: 29. Current Mat. L/T Debt | F12: ='PartABalance Sheet(PY)'!I12 -> 550059 | G12: ='PartABalance Sheet(CY) '!I12 -> 583700
A13: c. Notes Receivable | B13: ='PartABalance Sheet(PY)'!D13 -> 0 | C13: ='PartABalance Sheet(CY) '!D13 -> 0 | E13: 30. Current Mat. L/T Debt Rur. Dev. | F13: ='PartABalance Sheet(PY)'!I13 -> 0 | G13: ='PartABalance Sheet(CY) '!I13 -> 0
A14: 4. Non-Affiliates: | E14: 31. Current Mat. - Capital Leases | F14: ='PartABalance Sheet(PY)'!I14 -> 0 | G14: ='PartABalance Sheet(CY) '!I14 -> 0
A15: a. Telecom, Accounts Receivable | B15: ='PartABalance Sheet(PY)'!D15 -> 38181 | C15: ='PartABalance Sheet(CY) '!D15 -> 33962.9 | E15: 32. Income Taxes Accrued | F15: ='PartABalance Sheet(PY)'!I15 -> 0 | G15: ='PartABalance Sheet(CY) '!I15 -> 0
A16: b. Other Accounts Receivable | B16: ='PartABalance Sheet(PY)'!D16 -> 0 | C16: ='PartABalance Sheet(CY) '!D16 -> 0 | E16: 33. Other Taxes Accrued | F16: ='PartABalance Sheet(PY)'!I16 -> 9986 | G16: ='PartABalance Sheet(CY) '!I16 -> 11921.23
A17: c. Notes Receivable | B17: ='PartABalance Sheet(PY)'!D17 -> 0 | C17: ='PartABalance Sheet(CY) '!D17 -> 0 | E17: 34. Other Current Liabilities | F17: ='PartABalance Sheet(PY)'!I17 -> 362320 | G17: ='PartABalance Sheet(CY) '!I17 -> 419681.84
A18: 5. Interest and Dividends Receivable | B18: ='PartABalance Sheet(PY)'!D18 -> 0 | C18: ='PartABalance Sheet(CY) '!D18 -> 0 | E18: 35. Total Current Liabilities (25 - 34) | F18: =SUM(F8:F17) -> 1610280 | G18: =SUM(G8:G17) -> 1623712.55
A19: 6. Material-Regulated | B19: ='PartABalance Sheet(PY)'!D19 -> 0 | C19: ='PartABalance Sheet(CY) '!D19 -> 0 | E19: LONG-TERM DEBT
A20: 7. Material-Nonregulated | B20: ='PartABalance Sheet(PY)'!D20 -> 0 | C20: ='PartABalance Sheet(CY) '!D20 -> 0 | E20: 36. Funded Debt-RUS Notes | F20: ='PartABalance Sheet(PY)'!I20 -> 832337 | G20: ='PartABalance Sheet(CY) '!I20 -> 806932
A21: 8. Prepayments | B21: ='PartABalance Sheet(PY)'!D21 -> 0 | C21: ='PartABalance Sheet(CY) '!D21 -> 0 | E21: 37. Funded Debt-RTB Notes | F21: ='PartABalance Sheet(PY)'!I21 -> 0 | G21: ='PartABalance Sheet(CY) '!I21 -> 0
A22: 9. Other Current Assets | B22: ='PartABalance Sheet(PY)'!D22 -> 88 | C22: ='PartABalance Sheet(CY) '!D22 -> 0 | E22: 38. Funded Debt-FFB Notes | F22: ='PartABalance Sheet(PY)'!I22 -> 0 | G22: ='PartABalance Sheet(CY) '!I22 -> 0
A23: 10. Total Current Assets (1 Thru 9) | B23: =B8+B9+B11+B12+B13+B15+B16+B17+B18+B19+B20+B21+B22 -> 106382 | C23: =C8+C9+C11+C12+C13+C15+C16+C17+C18+C19+C20+C21+C22 -> 40963.7 | E23: 39. Funded Debt-Other | F23: ='PartABalance Sheet(PY)'!I23 -> 342653 | G23: ='PartABalance Sheet(CY) '!I23 -> 333595
E24: 40. Funded Debt-Rural Develop. Loan | F24: ='PartABalance Sheet(PY)'!I24 -> 0 | G24: ='PartABalance Sheet(CY) '!I24 -> 0
A25: NONCURRENT ASSETS | E25: 41. Premium (Discount) on L/T Debt | F25: ='PartABalance Sheet(PY)'!I25 -> 0 | G25: ='PartABalance Sheet(CY) '!I25 -> 0
A26: 11. Investment in Affiliated Companies | E26: 42. Reacquired Debt | F26: ='PartABalance Sheet(PY)'!I26 -> 0 | G26: ='PartABalance Sheet(CY) '!I26 -> 0
A27: a. Rural Development | B27: ='PartABalance Sheet(PY)'!D27 -> 0 | C27: ='PartABalance Sheet(CY) '!D27 -> 0 | E27: 43. Obligations Under Capital Lease | F27: ='PartABalance Sheet(PY)'!I27 -> 0 | G27: ='PartABalance Sheet(CY) '!I27 -> 0
A28: b. Nonrural Development | B28: ='PartABalance Sheet(PY)'!D28 -> 0 | C28: ='PartABalance Sheet(CY) '!D28 -> 0 | E28: 44. Adv. From Affiliated Companies | F28: ='PartABalance Sheet(PY)'!I28 -> 0 | G28: ='PartABalance Sheet(CY) '!I28 -> 0
A29: 12. Other Investments | E29: 45. Other Long-Term Debt | F29: ='PartABalance Sheet(PY)'!I29 -> 0 | G29: ='PartABalance Sheet(CY) '!I29 -> 0
A30: a. Rural Development | B30: ='PartABalance Sheet(PY)'!D30 -> 0 | C30: ='PartABalance Sheet(CY) '!D30 -> 0 | E30: 46. Total Long-Term Debt (36-45) | F30: =SUM(F20:F29) -> 1174990 | G30: =SUM(G20:G29) -> 1140527
A31: b. Nonrural Development | B31: ='PartABalance Sheet(PY)'!D31 -> 0 | C31: ='PartABalance Sheet(CY) '!D31 -> 0 | E31: OTHER LIAB. & DEF. CREDITS
A32: 13. Nonregulated Investments | B32: ='PartABalance Sheet(PY)'!D32 -> 18708 | C32: ='PartABalance Sheet(CY) '!D32 -> 22384.28 | E32: 47. Other Long-Term Liabilities | F32: ='PartABalance Sheet(PY)'!I32 -> 0 | G32: ='PartABalance Sheet(CY) '!I32 -> 0
A33: 14. Other Noncurrent Assets | B33: ='PartABalance Sheet(PY)'!D33 -> 5500 | C33: ='PartABalance Sheet(CY) '!D33 -> 4750 | E33: 48. Other Deferred Credits (B) | F33: ='PartABalance Sheet(PY)'!I33 -> 0 | G33: ='PartABalance Sheet(CY) '!I33 -> 0
A34: 15. Deferred Charges | B34: ='PartABalance Sheet(PY)'!D34 -> 0 | C34: ='PartABalance Sheet(CY) '!D34 -> 0 | E34: 49. Other Jurisdictional Differences | F34: ='PartABalance Sheet(PY)'!I34 -> 0 | G34: ='PartABalance Sheet(CY) '!I34 -> 0
A35: 16. Jurisdictional Differences | B35: ='PartABalance Sheet(PY)'!D35 -> 0 | C35: ='PartABalance Sheet(CY) '!D35 -> 0 | E35: 50. Total Other Liab. & Def. Credits (47 thru 49) | F35: =SUM(F32:F34) -> 0 | G35: =SUM(G32:G34) -> 0
A36: 17. Total noncurrent Assets (11 thru 16) | B36: =B27+B28+B30+B31+B32+B33+B34+B35 -> 24208 | C36: =C27+C28+C30+C31+C32+C33+C34+C35 -> 27134.28 | E36: EQUITY
E37: 51. Cap. Stock Outstanding & Subscribed | F37: ='PartABalance Sheet(PY)'!I37 -> 0 | G37: ='PartABalance Sheet(CY) '!I37 -> 0
A38: PLANT, PROPERTY AND EQUIPMENT | E38: 52. Additional Paid-in-Capital | F38: ='PartABalance Sheet(PY)'!I38 -> 0 | G38: ='PartABalance Sheet(CY) '!I38 -> 0
A39: 18. Telecom Plant-in-Service | B39: ='PartABalance Sheet(PY)'!D39 -> 2048915 | C39: ='PartABalance Sheet(CY) '!D39 -> 2171834.09 | E39: 53. Treasury Stock | F39: ='PartABalance Sheet(PY)'!I39 -> 0 | G39: ='PartABalance Sheet(CY) '!I39 -> 0
A40: 19. Property Held for Future Use | B40: ='PartABalance Sheet(PY)'!D40 -> 0 | C40: ='PartABalance Sheet(CY) '!D40 -> 0 | E40: 54. Membership and cap. Certificates | F40: ='PartABalance Sheet(PY)'!I40 -> 0 | G40: ='PartABalance Sheet(CY) '!I40 -> 0
A41: 20. Plant Under Construction | B41: ='PartABalance Sheet(PY)'!D41 -> 2153 | C41: ='PartABalance Sheet(CY) '!D41 -> 2475.36 | E41: 55. Other Capital | F41: ='PartABalance Sheet(PY)'!I41 -> 0 | G41: ='PartABalance Sheet(CY) '!I41 -> 0
A42: 21. Plant Adj.,Nonop Plant & Goodwill | B42: ='PartABalance Sheet(PY)'!D42 -> 0 | C42: ='PartABalance Sheet(CY) '!D42 -> 0 | E42: 56. Patronage Capital Credits | F42: ='PartABalance Sheet(PY)'!I42 -> 0 | G42: ='PartABalance Sheet(CY) '!I42 -> 0
A43: 22. Accumulated Depreciation (CR.) | B43: ='PartABalance Sheet(PY)'!D43 -> -1043343 | C43: ='PartABalance Sheet(CY) '!D43 -> -1216746.82 | E43: 57. Retained Earnings or Margins | F43: ='PartABalance Sheet(PY)'!I43 -> -1646955 | G43: ='PartABalance Sheet(CY) '!I43 -> -1738578.94
A44: 23. Net Plant (18 thru 21 less 22) | B44: =SUM(B39:B43) -> 1007725 | C44: =SUM(C39:C43) -> 957562.63 | E44: 58. Total Equity (51 thru 57) | F44: =SUM(F37:F43) -> -1646955 | G44: =SUM(G37:G43) -> -1738578.94
A46: TOTAL ASSETS (10+17+23) | B46: =B23+B36+B44 -> 1138315 | C46: =C23+C36+C44 -> 1025660.61 | E46: 59. TOTAL LIABILITIES AND EQUITY (35+46+50+58) | F46: =F18+F30+F35+F44 -> 1138315 | G46: =G18+G30+G35+G44 -> 1025660.61
A48: Note: | B48: =B46-F46 -> 0 | C48: =C46-G46 -> 0
A49: Adjusted Balances represents balances
A50: after current year Part 64 adjustments
A51: (B) - Provide Deferred Taxes on
A52: separate rate base schedule

Sheet RateBase
A2: Company Name:
A3: ='PartABalance Sheet(PY)'!A3 -> Westgate Communications, LLC
C4: Adj. Balance | D4: Adj. Balance | E4: Average
B5: Line | C5: End of Year | D5: End of Year | E5: Adj End of Year
B6: # | C6: 2012 | D6: 2013 | E6: Balance
A7: Average Rate Base:
A8: Total Regulated Adjusted Telecom Plant-In-service | B8: 18 | C8: ='PartABalance Sheet (Summary)'!B39 -> 2048915 | D8: ='PartABalance Sheet (Summary)'!C39 -> 2171834.09 | E8: =(C8+D8)/2 -> 2110374.545
A9: Total Regulated Adjusted Accumulated Depreciation (CR) | B9: 22 | C9: ='PartABalance Sheet (Summary)'!B43 -> -1043343 | D9: ='PartABalance Sheet (Summary)'!C43 -> -1216746.82 | E9: =(C9+D9)/2 -> -1130044.91
A10: Total Regulated Materials & Supplies | B10: 6 | C10: ='PartABalance Sheet (Summary)'!B19 -> 0 | D10: ='PartABalance Sheet (Summary)'!C19 -> 0 | E10: 0
A11: Deferred Income Taxes (CR) | C11: ='PartABalance Sheet (Summary)'!F15 -> 0 | D11: ='PartABalance Sheet (Summary)'!G15 -> 0 | E11: 0
A12: Total Regulated Rate Base | C12: =SUM(C8:C11) -> 1005572 | D12: =SUM(D8:D11) -> 955087.27 | E12: 980329.635
A15: Note:
A16: 1. Normal balance of deferred income taxes and
A17: accumulated depreciation is a credit.
A18: 2. Adjusted balance includes current year Part 64 adjustments

Sheet Statistics
A2: Company Name:
A3: ='PartABalance Sheet(PY)'!A3 -> Westgate Communications, LLC
B4: Prior Year | C4: Current Year
A5: Description | B5: End of Yr. | C5: End of Yr | D5: Difference | E5: %
B6: Balance - 2012 | C6: Balance - 2013 | E6: Change
A7: Access Lines:
A8: Residential | B8: 14 | C8: 15 | D8: =C8-B8 -> 1 | E8: =D8/B8 -> 0.07142857143
A9: Business | B9: =6+9 -> 15 | C9: =26+9 -> 35 | D9: =C9-B9 -> 20 | E9: =D9/B9 -> 1.333333333
A10: Total | B10: =SUM(B8:B9) -> 29 | C10: =SUM(C8:C9) -> 50 | D10: 21 | E10: =D10/B10 -> 0.724137931
B14: End of Yr. | C14: End of Year | D14: Difference | E14: %
B15: Balance - 2012 | C15: Balance -2013 | E15: Change
A16: Broadband Connections | B16: 0 | C16: 0 | D16: =C16-B16 -> 0 | E16: =D16/B16 -> 
B20: Prior Yr. | C20: Current Yr. | D20: Difference | E20: %
B21: 2012 | C21: 2013 | E21: Change
A22: Total Annual Amount:
A23: Gross Capital Expenditures | B23: 92655.59 | C23: 125160.98 | D23: =C23-B23 -> 32505.39 | E23: =D23/B23 -> 0.3508195242

Sheet PartBIncomeStmt(PY)
A1: FCC Form 481
A2: Part B Statement of Income and Retained Earnings Statement
B4: Company Name:
B5: ='PartABalance Sheet(PY)'!A3 -> Westgate Communications, LLC
C6: Prior Year | D6: Part 64 | E6: Prior Year
A7: Line # | B7: Item | C7: 2012 | D7: Adj. to NonReg | E7: Adjusted
C8: (A) | D8: (B) | E8: 2012
A9: 1 | B9: Local Network Services Revenues | C9: =9722.22+0.83 -> 9723.05 | E9: =SUM(C9:D9) -> 9723.05
A10: 2 | B10: Network Access Services Revenues | C10: =494602.99-67.69+24.06 -> 494559.36 | E10: =SUM(C10:D10) -> 494559.36
A11: 3 | B11: Long Distance Network Services Revenues | C11: =613.6-24.06 -> 589.54 | E11: 589.54
A12: 4 | B12: Carrier Billing and Collection Revenues | C12: 0 | E12: 0
A13: 5 | B13: Miscellaneous Revenues | C13: =67.69+18442.22 -> 18509.91 | E13: 18509.91
A14: 6 | B14: Uncollectible Revenues (Normal Balance is debit or in brackets) | C14: 33.69 | E14: 33.69
A15: 7 | B15: Net Operating Revenues (1 thru 6) | C15: =SUM(C9:C14) -> 523415.55 | D15: =SUM(D9:D14) -> 0 | E15: 523415.55
A16: 8 | B16: Plant Specific Operations Expense | C16: 193084 | D16: -2155 | E16: =SUM(C16:D16) -> 190929
A17: 9 | B17: Plant Nonspecific Operations Expense (excluding Depreciation & Amort.) | C17: 21264 | D17: 0 | E17: =SUM(C17:D17) -> 21264
A18: 10 | B18: Depreciation Expense | C18: 158486 | D18: -775 | E18: 157711
A19: 11 | B19: Amortization Expense | C19: 750 | E19: 750
A20: 12 | B20: Customer Operations Expense | C20: 16235 | D20: 48 | E20: 16283
A21: 13 | B21: Corporate Operations | C21: 176088 | D21: -1101 | E21: 174987
A22: 13a | B22: Less: Corporate Operations Adjustment (FCC 36.621) report in ( ) | C22: 0 | E22: 0
A23: 13b | B23: Adjusted Corporate Operations Expense (Line 13 minus Line 13a) | C23: =SUM(C21:C22) -> 176088 | D23: =SUM(D21:D22) -> -1101 | E23: 174987
A24: 14 | B24: Total Operations Expenses (8 thru 12 +13b) | C24: =C16+C17+C18+C19+C20+C23 -> 565907 | D24: =D16+D17+D18+D19+D20+D23 -> -3983 | E24: 561924
A25: 15 | B25: Operating Income or Margins (7 less 14) | C25: =C15-C24 -> -42491.45 | D25: =D15-D24 -> 3983 | E25: -38508.45
A26: 16 | B26: Other Operating Income and Expenses ( ) | C26: 0 | E26: =SUM(C26:D26) -> 0
A27: 17 | B27: State and Local Taxes | C27: 0 | D27: 0 | E27: =SUM(C27:D27) -> 0
A28: 18 | B28: Federal Income Taxes (A1) | C28: 0 | D28: 0 | E28: 0
A29: 19 | B29: Other Taxes | C29: 4706 | D29: -61 | E29: 4645
A30: 20 | B30: Total Operating Taxes (17+18+19) | C30: =SUM(C27:C29) -> 4706 | D30: =SUM(D27:D29) -> -61 | E30: 4645
A31: 21 | B31: Net Operating Income or Margins (15+16-20) | C31: =C25+C26-C30 -> -47197.45 | D31: =D25+D26-D30 -> 4044 | E31: =E25+E26-E30 -> -43153.45
A32: 22 | B32: Interest on Funded Debt | C32: 67020 | E32: =SUM(C32:D32) -> 67020
A33: 23 | B33: Interest Expense - Capital Leases | C33: 0 | E33: =SUM(C33:D33) -> 0
A34: 24 | B34: Other Interest Expense | C34: 2079 | E34: 2079
A35: 25 | B35: Allowance for Funds Used During Construction (CR) | C35: 0 | E35: 0
A36: 26 | B36: Total Fixed Charges (22+23+24-25) | C36: =SUM(C32:C35) -> 69099 | D36: =SUM(D32:D35) -> 0 | E36: 69099
A37: 27 | B37: Nonoperating Net Income | C37: -100 | E37: =SUM(C37:D37) -> -100
A38: 28 | B38: Extraordinary Items | C38: 0 | E38: =SUM(C38:D38) -> 0
A39: 29 | B39: Jurisdictional Differences | C39: 0 | E39: 0
A40: 30 | B40: Nonregulated Net Income (B1) | C40: 3222 | D40: =-1*D31 -> -4044 | E40: -822
A41: 31 | B41: Total Net Income or Margins (21+27+28+29+30-26) | C41: =C31-C36+C37+C38+C39+C40 -> -113174.45 | D41: =D31-D36+D37+D38+D39+D40 -> 0 | E41: -113174.45
A42: 32 | B42: Total Taxes Based on Income | C42: 4706 | E42: =SUM(C42:D42) -> 4706
A43: 33 | B43: Retained Earning or Margins Beginning-of-Year | C43: -1533781 | E43: =SUM(C43:D43) -> -1533781
A44: 34 | B44: Miscellaneous Credits Year-to-Date | C44: 0 | E44: 0
A45: 35 | B45: Dividends Declared (Common) | C45: 0 | E45: 0
A46: 36 | B46: Dividends Declared (Preferred) | C46: 0 | E46: 0
A47: 37 | B47: Other Debits Year-to-Date | C47: 0 | E47: 0
A48: 38 | B48: Transfers to Patronage Capital | C48: 0 | E48: 0
A49: 39 | B49: Retained Earnings or Margins End-of-Period ((31+33+34)-(35+36+37+38) | C49: =(C41+C43+C44)-(C45+C46+C47+C48) -> -1646955.45 | D49: =(D41+D43+D44)-(D45+D46+D47+D48) -> 0 | E49: -1646955.45
A50: 40 | B50: Patronage Capital Beginning-of-Year | C50: 0 | E50: =SUM(C50:D50) -> 0
A51: 41 | B51: Transfers to Patronage Capital | C51: 0 | E51: =SUM(C51:D51) -> 0
A52: 42 | B52: Patronage Capital Credits Retired | C52: 0 | E52: 0
A53: 43 | B53: Patronage Capital End-of-Year (40+41-42) | C53: =C50+C51-C52 -> 0 | D53: =D50+D51-D52 -> 0 | E53: 0
A54: 44 | B54: Annual Debt Service Payments | C54: =C32+822 -> 67842 | E54: =C54 -> 67842
A55: 45 | B55: Cash Ratio ((14+20-10-11)/7) | C55: =((C24+C30-C18-C19)/C15) -> 0.7859472268 | D55: =((D24+D30-D18-D19)/D15) ->  | E55: =((E24+E30-E18-E19)/E15) -> 0.7797017112
A56: 46 | B56: Operating Accrual Ratio ((14+20+26)/7) | C56: =((C24+C30+C36)/C15) -> 1.22218761 | D56: =((D24+D30+D36)/D15) ->  | E56: =((E24+E30+E36)/E15) -> 1.214461435
A57: 47 | B57: TIER ((31+26)/26) | C57: =((C41+C36)/C36) -> -0.637859448 | D57: =((D41+D36)/D36) ->  | E57: -0.637859448
A58: 48 | B58: DSCR ((31+26+10+11)/44) | C58: =(C41+C36+C18+C19)/C54 -> 1.697481649 | D58: =(D41+D36+D18+D19)/D54 ->  | E58: 1.686058047
A61: Notes:
A62: (A) | B62: As reported on Form 481
A63: (A1) | B63: S Corporations provide effective tax rate on Income Statement
B64: Summary Schedule footnote, Page 8
A65: (B) | B65: Part 64 adjustment from regulated to nonregulated
A66: (B1) | B66: Part 64 offset to nonregulated income (No Impact to retained earnings)

Sheet PartBIncomeStmt(CY)
A1: FCC Form 481
A2: Part B Statement of Income and Retained Earnings Statement
B4: Company Name:
B5: ='PartABalance Sheet(PY)'!A3 -> Westgate Communications, LLC
C6: Current Year | D6: Part 64 | E6: Current Year
A7: Line # | B7: Item | C7: 2013 | D7: Adj. to NonReg | E7: Adjusted
C8: (A) | D8: (B) | E8: 2013
A9: 1 | B9: Local Network Services Revenues | C9: =1.52+13661.28 -> 13662.8 | D9: 0 | E9: =SUM(C9:D9) -> 13662.8
A10: 2 | B10: Network Access Services Revenues | C10: =374+110882-18231+57867+16439.91+30518.48-1913+294484.6 -> 490421.99 | D10: 0 | E10: =SUM(C10:D10) -> 490421.99
A11: 3 | B11: Long Distance Network Services Revenues | C11: =2065.94-156.76 -> 1909.18 | E11: 1909.18
A12: 4 | B12: Carrier Billing and Collection Revenues | C12: 0 | D12: 0 | E12: 0
A13: 5 | B13: Miscellaneous Revenues | C13: =18876.52+23.74 -> 18900.26 | E13: 18900.26
A14: 6 | B14: Uncollectible Revenues (Normal Balance is debit or in brackets) | C14: -33.83 | E14: -33.83
A15: 7 | B15: Net Operating Revenues (1 thru 6) | C15: =SUM(C9:C14) -> 524860.4 | D15: =SUM(D9:D14) -> 0 | E15: 524860.4
A16: 8 | B16: Plant Specific Operations Expense | C16: 193938.31 | D16: -2251 | E16: =SUM(C16:D16) -> 191687.31
A17: 9 | B17: Plant Nonspecific Operations Expense (excluding Depreciation & Amort.) | C17: 34201.46 | D17: -456 | E17: =SUM(C17:D17) -> 33745.46
A18: 10 | B18: Depreciation Expense | C18: 174619.23 | D18: -791 | E18: 173828.23
A19: 11 | B19: Amortization Expense | C19: 0 | E19: 0
A20: 12 | B20: Customer Operations Expense | C20: 21991.54 | D20: -25 | E20: 21966.54
A21: 13 | B21: Corporate Operations | C21: 118309.08 | D21: -1650 | E21: 116659.08
A22: 13a | B22: Less: Corporate Operations Adjustment (FCC 36.621) report in ( ) | C22: 0 | E22: 0
A23: 13b | B23: Adjusted Corporate Operations Expense (Line 13 minus Line 13a) | C23: =SUM(C21:C22) -> 118309.08 | D23: =SUM(D21:D22) -> -1650 | E23: 116659.08
A24: 14 | B24: Total Operations Expenses (8 thru 12 +13b) | C24: =C16+C17+C18+C19+C20+C23 -> 543059.62 | D24: =D16+D17+D18+D19+D20+D23 -> -5173 | E24: 537886.62
A25: 15 | B25: Operating Income or Margins (7 less 14) | C25: =C15-C24 -> -18199.22 | D25: =D15-D24 -> 5173 | E25: -13026.22
A26: 16 | B26: Other Operating Income and Expenses ( ) | C26: 0 | E26: =SUM(C26:D26) -> 0
A27: 17 | B27: State and Local Taxes | C27: 0 | D27: 0 | E27: =SUM(C27:D27) -> 0
A28: 18 | B28: Federal Income Taxes (A1) | C28: 0 | D28: 0 | E28: 0
A29: 19 | B29: Other Taxes | C29: 2089.68 | D29: -27 | E29: 2062.68
A30: 20 | B30: Total Operating Taxes (17+18+19) | C30: =SUM(C27:C29) -> 2089.68 | D30: =SUM(D27:D29) -> -27 | E30: 2062.68
A31: 21 | B31: Net Operating Income or Margins (15+16-20) | C31: =C25+C26-C30 -> -20288.9 | D31: =D25+D26-D30 -> 5200 | E31: =E25+E26-E30 -> -15088.9
A32: 22 | B32: Interest on Funded Debt | C32: 67820.65 | E32: =SUM(C32:D32) -> 67820.65
A33: 23 | B33: Interest Expense - Capital Leases | C33: 0 | E33: =SUM(C33:D33) -> 0
A34: 24 | B34: Other Interest Expense | C34: 7757.19 | E34: 7757.19
A35: 25 | B35: Allowance for Funds Used During Construction (CR) | C35: 0 | E35: 0
A36: 26 | B36: Total Fixed Charges (22+23+24-25) | C36: =SUM(C32:C35) -> 75577.84 | D36: =SUM(D32:D35) -> 0 | E36: 75577.84
A37: 27 | B37: Nonoperating Net Income | C37: -1933.94 | E37: =SUM(C37:D37) -> -1933.94
A38: 28 | B38: Extraordinary Items | C38: 0 | E38: =SUM(C38:D38) -> 0
A39: 29 | B39: Jurisdictional Differences | C39: 0 | E39: 0
A40: 30 | B40: Nonregulated Net Income (B1) | C40: 6178.73 | D40: =-1*D31 -> -5200 | E40: 978.73
A41: 31 | B41: Total Net Income or Margins (21+27+28+29+30-26) | C41: =C31-C36+C37+C38+C39+C40 -> -91621.95 | D41: =D31-D36+D37+D38+D39+D40 -> 0 | E41: -91621.95
A42: 32 | B42: Total Taxes Based on Income | C42: 2089.68 | E42: =SUM(C42:D42) -> 2089.68
A43: 33 | B43: Retained Earning or Margins Beginning-of-Year | C43: -1646955 | E43: =SUM(C43:D43) -> -1646955
A44: 34 | B44: Miscellaneous Credits Year-to-Date | C44: 0 | E44: 0
A45: 35 | B45: Dividends Declared (Common) | C45: 0 | E45: 0
A46: 36 | B46: Dividends Declared (Preferred) | C46: 0 | E46: 0
A47: 37 | B47: Other Debits Year-to-Date | C47: 0 | E47: 0
A48: 38 | B48: Transfers to Patronage Capital | C48: 0 | E48: 0
A49: 39 | B49: Retained Earnings or Margins End-of-Period ((31+33+34)-(35+36+37+38) | C49: =(C41+C43+C44)-(C45+C46+C47+C48) -> -1738576.95 | D49: =(D41+D43+D44)-(D45+D46+D47+D48) -> 0 | E49: -1738576.95
A50: 40 | B50: Patronage Capital Beginning-of-Year | E50: =SUM(C50:D50) -> 0
A51: 41 | B51: Transfers to Patronage Capital | E51: =SUM(C51:D51) -> 0
A52: 42 | B52: Patronage Capital Credits Retired | E52: 0
A53: 43 | B53: Patronage Capital End-of-Year (40+41-42) | C53: =C50+C51-C52 -> 0 | D53: =D50+D51-D52 -> 0 | E53: 0
A54: 44 | B54: Annual Debt Service Payments | C54: =C32 -> 67820.65 | E54: =C54 -> 67820.65
A55: 45 | B55: Cash Ratio ((14+20-10-11)/7) | C55: =((C24+C30-C18-C19)/C15) -> 0.7059592798 | D55: =((D24+D30-D18-D19)/D15) ->  | E55: =((E24+E30-E18-E19)/E15) -> 0.6975589509
A56: 46 | B56: Operating Accrual Ratio ((14+20+26)/7) | C56: =((C24+C30+C36)/C15) -> 1.182651882 | D56: =((D24+D30+D36)/D15) ->  | E56: =((E24+E30+E36)/E15) -> 1.172744486
A57: 47 | B57: TIER ((31+26)/26) | C57: =((C41+C36)/C36) -> -0.2122859029 | D57: =((D41+D36)/D36) ->  | E57: -0.2122859029
A58: 48 | B58: DSCR ((31+26+10+11)/44) | C58: =(C41+C36+C18+C19)/C54 -> 2.33815394 | D58: =(D41+D36+D18+D19)/D54 ->  | E58: 2.326490825
A61: Notes:
A62: (A) | B62: As reported on Form 481
A63: (A1) | B63: S Corporations provide effective tax rate on Income Statement
B64: Summary Schedule footnote, Page 8
A65: (B) | B65: Part 64 adjustment from regulated to nonregulated
A66: (B1) | B66: Part 64 offset to nonregulated income (No Impact to retained earnings)

Sheet PartBIncomeStmtSummary
A1: FCC Form 481
A2: Part B Statement of Income and Retained Earnings Statement
B4: Company Name:
B5: ='PartABalance Sheet(PY)'!A3 -> Westgate Communications, LLC
C6: Adjusted | D6: Adjusted
A7: Line # | B7: Item | C7: Prior Year | D7: Current Year
C8: 2012 | D8: 2013
A9: 1 | B9: Local Network Services Revenues | C9: ='PartBIncomeStmt(PY)'!E9 -> 9723.05 | D9: ='PartBIncomeStmt(CY) '!E9 -> 13662.8
A10: 2 | B10: Network Access Services Revenues | C10: ='PartBIncomeStmt(PY)'!E10 -> 494559.36 | D10: ='PartBIncomeStmt(CY) '!E10 -> 490421.99
A11: 3 | B11: Long Distance Network Services Revenues | C11: ='PartBIncomeStmt(PY)'!E11 -> 589.54 | D11: ='PartBIncomeStmt(CY) '!E11 -> 1909.18
A12: 4 | B12: Carrier Billing and Collection Revenues | C12: ='PartBIncomeStmt(PY)'!E12 -> 0 | D12: ='PartBIncomeStmt(CY) '!E12 -> 0
A13: 5 | B13: Miscellaneous Revenues | C13: ='PartBIncomeStmt(PY)'!E13 -> 18509.91 | D13: ='PartBIncomeStmt(CY) '!E13 -> 18900.26
A14: 6 | B14: Uncollectible Revenues (Normal Balance is debit or in brackets) | C14: ='PartBIncomeStmt(PY)'!E14 -> 33.69 | D14: ='PartBIncomeStmt(CY) '!E14 -> -33.83
A15: 7 | B15: Net Operating Revenues (1 thru 6) | C15: =SUM(C9:C14) -> 523415.55 | D15: =SUM(D9:D14) -> 524860.4
A16: 8 | B16: Plant Specific Operations Expense | C16: ='PartBIncomeStmt(PY)'!E16 -> 190929 | D16: ='PartBIncomeStmt(CY) '!E16 -> 191687.31
A17: 9 | B17: Plant Nonspecific Operations Expense (excluding Depreciation & Amort.) | C17: ='PartBIncomeStmt(PY)'!E17 -> 21264 | D17: ='PartBIncomeStmt(CY) '!E17 -> 33745.46
A18: 10 | B18: Depreciation Expense | C18: ='PartBIncomeStmt(PY)'!E18 -> 157711 | D18: ='PartBIncomeStmt(CY) '!E18 -> 173828.23
A19: 11 | B19: Amortization Expense | C19: ='PartBIncomeStmt(PY)'!E19 -> 750 | D19: ='PartBIncomeStmt(CY) '!E19 -> 0
A20: 12 | B20: Customer Operations Expense | C20: ='PartBIncomeStmt(PY)'!E20 -> 16283 | D20: ='PartBIncomeStmt(CY) '!E20 -> 21966.54
A21: 13 | B21: Corporate Operations | C21: ='PartBIncomeStmt(PY)'!E21 -> 174987 | D21: ='PartBIncomeStmt(CY) '!E21 -> 116659.08
A22: 13a | B22: Less: Corporate Operations Adjustment (FCC 36.621) report in ( ) | C22: ='PartBIncomeStmt(PY)'!E22 -> 0 | D22: ='PartBIncomeStmt(CY) '!E22 -> 0
A23: 13b | B23: Adjusted Corporate Operations Expense (Line 13 minus Line 13a) | C23: =SUM(C21:C22) -> 174987 | D23: =SUM(D21:D22) -> 116659.08
A24: 14 | B24: Total Operations Expenses (8 thru 12 +13b) | C24: =C16+C17+C18+C19+C20+C23 -> 561924 | D24: =D16+D17+D18+D19+D20+D23 -> 537886.62
A25: 15 | B25: Operating Income or Margins (7 less 14) | C25: =C15-C24 -> -38508.45 | D25: =D15-D24 -> -13026.22
A26: 16 | B26: Other Operating Income and Expenses ( ) | C26: ='PartBIncomeStmt(PY)'!E26 -> 0 | D26: ='PartBIncomeStmt(CY) '!E26 -> 0
A27: 17 | B27: State and Local Taxes | C27: ='PartBIncomeStmt(PY)'!E27 -> 0 | D27: ='PartBIncomeStmt(CY) '!E27 -> 0
A28: 18 | B28: Federal Income Taxes | C28: ='PartBIncomeStmt(PY)'!E28 -> 0 | D28: ='PartBIncomeStmt(CY) '!E28 -> 0
A29: 19 | B29: Other Taxes | C29: ='PartBIncomeStmt(PY)'!E29 -> 4645 | D29: ='PartBIncomeStmt(CY) '!E29 -> 2062.68
A30: 20 | B30: Total Operating Taxes (17+18+19) | C30: =SUM(C27:C29) -> 4645 | D30: =SUM(D27:D29) -> 2062.68
A31: 21 | B31: Net Operating Income or Margins (15+16-20) | C31: =C25+C26-C30 -> -43153.45 | D31: =D25+D26-D30 -> -15088.9
A32: 22 | B32: Interest on Funded Debt | C32: ='PartBIncomeStmt(PY)'!E32 -> 67020 | D32: ='PartBIncomeStmt(CY) '!E32 -> 67820.65
A33: 23 | B33: Interest Expense - Capital Leases | C33: ='PartBIncomeStmt(PY)'!E33 -> 0 | D33: ='PartBIncomeStmt(CY) '!E33 -> 0
A34: 24 | B34: Other Interest Expense | C34: ='PartBIncomeStmt(PY)'!E34 -> 2079 | D34: ='PartBIncomeStmt(CY) '!E34 -> 7757.19
A35: 25 | B35: Allowance for Funds Used During Construction | C35: ='PartBIncomeStmt(PY)'!E35 -> 0 | D35: ='PartBIncomeStmt(CY) '!E35 -> 0
A36: 26 | B36: Total Fixed Charges (22+23+24-25) | C36: =SUM(C32:C35) -> 69099 | D36: =SUM(D32:D35) -> 75577.84
A37: 27 | B37: Nonoperating Net Income | C37: ='PartBIncomeStmt(PY)'!E37 -> -100 | D37: ='PartBIncomeStmt(CY) '!E37 -> -1933.94
A38: 28 | B38: Extraordinary Items | C38: ='PartBIncomeStmt(PY)'!E38 -> 0 | D38: ='PartBIncomeStmt(CY) '!E38 -> 0
A39: 29 | B39: Jurisdictional Differences | C39: ='PartBIncomeStmt(PY)'!E39 -> 0 | D39: ='PartBIncomeStmt(CY) '!E39 -> 0
A40: 30 | B40: Nonregulated Net Income | C40: ='PartBIncomeStmt(PY)'!E40 -> -822 | D40: ='PartBIncomeStmt(CY) '!E40 -> 978.73
A41: 31 | B41: Total Net Income or Margins (21+27+28+29+30-26) | C41: =C31-C36+C37+C38+C39+C40 -> -113174.45 | D41: =D31-D36+D37+D38+D39+D40 -> -91621.95
A42: 32 | B42: Total Taxes Based on Income | C42: ='PartBIncomeStmt(PY)'!E42 -> 4706 | D42: ='PartBIncomeStmt(CY) '!E42 -> 2089.68
A43: 33 | B43: Retained Earning or Margins Beginning-of-Year | C43: ='PartBIncomeStmt(PY)'!E43 -> -1533781 | D43: ='PartBIncomeStmt(CY) '!E43 -> -1646955
A44: 34 | B44: Miscellaneous Credits Year-to-Date | D44: ='PartBIncomeStmt(CY) '!E44 -> 0
A45: 35 | B45: Dividends Declared (Common) | C45: ='PartBIncomeStmt(PY)'!E45 -> 0 | D45: ='PartBIncomeStmt(CY) '!E45 -> 0
A46: 36 | B46: Dividends Declared (Preferred) | D46: ='PartBIncomeStmt(CY) '!E46 -> 0
A47: 37 | B47: Other Debits Year-to-Date | C47: ='PartBIncomeStmt(PY)'!E47 -> 0 | D47: ='PartBIncomeStmt(CY) '!E47 -> 0
A48: 38 | B48: Transfers to Patronage Capital | C48: ='PartBIncomeStmt(PY)'!E48 -> 0 | D48: ='PartBIncomeStmt(CY) '!E48 -> 0
A49: 39 | B49: Retained Earnings or Margins End-of-Period ((31+33+34)-(35+36+37+38) | C49: =(C41+C43+C44)-(C45+C46+C47+C48) -> -1646955.45 | D49: =(D41+D43+D44)-(D45+D46+D47+D48) -> -1738576.95
A50: 40 | B50: Patronage Capital Beginning-of-Year | C50: ='PartBIncomeStmt(PY)'!E50 -> 0 | D50: ='PartBIncomeStmt(CY) '!E50 -> 0
A51: 41 | B51: Transfers to Patronage Capital | C51: ='PartBIncomeStmt(PY)'!E51 -> 0 | D51: ='PartBIncomeStmt(CY) '!E51 -> 0
A52: 42 | B52: Patronage Capital Credits Retired | C52: ='PartBIncomeStmt(PY)'!E52 -> 0 | D52: ='PartBIncomeStmt(CY) '!E52 -> 0
A53: 43 | B53: Patronage Capital End-of-Year (40+41-42) | C53: =C50+C51-C52 -> 0 | D53: =D50+D51-D52 -> 0
A54: 44 | B54: Annual Debt Service Payments | C54: ='PartBIncomeStmt(PY)'!E54 -> 67842 | D54: ='PartBIncomeStmt(CY) '!E54 -> 67820.65
A55: 45 | B55: Cash Ratio ((14+20-10-11)/7) | C55: =((C24+C30-C18-C19)/C15) -> 0.7797017112 | D55: =((D24+D30-D18-D19)/D15) -> 0.6975589509
A56: 46 | B56: Operating Accrual Ratio ((14+20+26)/7) | C56: =((C24+C30+C36)/C15) -> 1.214461435 | D56: =((D24+D30+D36)/D15) -> 1.172744486
A57: 47 | B57: TIER ((31+26)/26) | C57: =((C41+C36)/C36) -> -0.637859448 | D57: =((D41+D36)/D36) -> -0.2122859029
A58: 48 | B58: DSCR ((31+26+10+11)/44) | C58: =(C41+C36+C18+C19)/C54 -> 1.686058047 | D58: =(D41+D36+D18+D19)/D54 -> 2.326490825
B61: Footnote (A1) | C61: 2012 | D61: 2013
B62: Limited Liability Corporation (LLC) Effective Tax Rate (2 decimal places): | C62: 0 | D62: 0
B63: Note: WeavTel has negative net income (loss) , therefore LLC tax rate is 0 percent

Sheet AccessRevDetail
A1: Network Access Services Revenue:
A3: Company Name:
A4: ='PartABalance Sheet(PY)'!A3 -> Westgate Communications, LLC
A6: Description | B6: Part 32 | C6: 2012 | D6: 2013
B7: Account
A8: End User Revenue (SLC, ARC, etc.) | B8: 5081 | C8: 3488.09 | D8: 4015.52
A9: Switched Access (excluding USF): | B9: 5082
A10: Intrastate | B10: 5084 | C10: 13275.54 | D10: =30518.48-1913-554 -> 28051.48
A11: Interstate | B11: 5082 | C11: 53322.73 | D11: =75328.08+16439.91 -> 91767.99
A12: Special Access: | B12: 5083
A13: Intrastate | B13: 5084.2 | C13: 0 | D13: 0
A14: Interstate | C14: 0 | D14: 0
A15: Federal USF (ICLS/Caf/HCL/SN) | B15: 5082.1 | C15: 424473 | D15: 366587
A16: Total (must equal line 2 of Income Stmt.) | C16: =C8+C10+C11+C13+C14+C15 -> 494559.36 | D16: =D8+D10+D11+D13+D14+D15 -> 490421.99
A17: Line 2 of Income Stmt. | C17: ='PartBIncomeStmt(PY)'!E10 -> 494559.36 | D17: ='PartBIncomeStmt(CY) '!E10 -> 490421.99
A18: Difference | C18: =C16-C17 -> 0 | D18: =D16-D17 -> 0
